[Event "8th Mersin Open 2024"]
[Site "Mersin"]
[Date "2024.11.13"]
[Round "6"]
[White "Ilek, Kadir Bertan"]
[Black "Tatlioglu, Ege"]
[Result "1-0"]
[ECO "D00"]
[WhiteElo "1827"]
[BlackElo "1910"]
[Annotator "NA RC"]
[PlyCount "67"]
[EventDate "2024.11.10"]
[EventType "swiss"]
[EventCountry "TUR"]
[SourceTitle "playchess.com"]
[Source "ChessBase"]
[SourceQuality "1"]
[TimeControl "5400+30"]

1. d4 {[%emt 0:01:00]} Nf6 {[%emt 0:04:00]} 2. Bf4 {[%emt 0:00:30]} d5 {[%emt 0:00:30]} 3. e3 {[%emt 0:00:00]} c5 {[%emt 0:00:00]} 4. dxc5 {[%emt 0:00:00]} e6 {[%emt 0:04:00]} 5. b4 {[%emt 0:00:00]} a5 {[%emt 0:02:30]} 6. c3 {[%emt 0:00:00]} axb4 {[%emt 0:02:30]} 7. cxb4 {[%emt 0:03:30]} b6 {[%emt 0:02:30]} 8. Bxb8 {[%emt 0:00:30]} Rxb8 {[%emt 0:00:30]} 9. Bb5+ {[%emt 0:00:00]} Ke7 {[%emt 0:10:30]} 10. c6 {[%emt 0:00:00]} g6 {[%emt 0:02:30]} 11. Nd2 {[%emt 0:05:30]} Bg7 {[%emt 0:00:00]} 12. Rc1 {[%emt 0:02:30]} Qc7 {[%emt 0:01:00]} 13. Ngf3 {[%emt 0:02:30]} e5 {[%emt 0:03:30]} 14. O-O {[%emt 0:08:30]} h5 {[%emt 0:13:30]} 15. Re1 {[%emt 0:00:30]} e4 {[%emt 0:00:30]} 16. Nd4 {[%emt 0:00:30]} Ng4 {[%emt 0:06:30]} 17. Nf1 {[%emt 0:14:30]} Be5 {[%emt 0:05:30]} 18. f4 {[%emt 0:03:30]} Bd6 {[%emt 0:02:30]} 19. Qb3 {[%emt 0:05:30]} Nf6 {[%emt 0:01:30]} 20. a4 {[%emt 0:01:30]} g5 {[%emt 0:01:30]} 21. Ng3 {[%emt 0:12:30]} gxf4 {[%emt 0:06:30]} 22. Ngf5+ {[%emt 0:00:30]} Kf8 {[%emt 0:01:30]} 23. Nxd6 {[%emt 0:01:30]} Qxd6 {[%emt 0:00:30]} 24. c7 {[%emt 0:00:30]} Ra8 {[%emt 0:01:30]} 25. Rc6 {[%emt 0:11:30]} Qe5 {[%emt 0:01:30]} 26. Qc3 {[%emt 0:05:30]} Ng4 {[%emt 0:00:30]} 27. h3 {[%emt 0:05:35]} f3 {[%emt 0:01:30]} 28. hxg4 {[%emt 0:00:49]} Qg3 {[%emt 0:03:30]} 29. Nxf3 {[%emt 0:02:17]} Rh7 {[%emt 0:00:30]} 30. Qe5 {[%emt 0:00:36]} Qxg4 {[%emt 0:01:30]} 31. Rd6 {[%emt 0:00:23]} Be6 {[%emt 0:00:30]} 32. Rd8+ {[%emt 0:00:30]} Ke7 {[%emt 0:00:30]} 33. Rxa8 {[%emt 0:00:15]} exf3 {[%emt 0:00:30]} 34. Re8# {[%emt 0:00:41]} 1-0

[Event "8th Mersin Open 2024"]
[Site "Mersin"]
[Date "2024.11.13"]
[Round "6"]
[White "Celik, Fatih"]
[Black "Shiraliyev, Muslim"]
[Result "0-1"]
[ECO "C00"]
[WhiteElo "1578"]
[BlackElo "1520"]
[Annotator "NA RC"]
[PlyCount "130"]
[EventDate "2024.11.10"]
[EventType "swiss"]
[EventCountry "TUR"]
[SourceTitle "playchess.com"]
[Source "ChessBase"]
[SourceQuality "1"]
[TimeControl "5400+30"]

1. e4 {[%emt 0:01:00]} c5 {[%emt 0:01:00]} 2. Nf3 {[%emt 0:03:30]} e6 {[%emt 0:00:30]} 3. d3 {[%emt 0:00:30]} d5 {[%emt 0:00:00]} 4. Nbd2 {[%emt 0:01:30]} Nc6 {[%emt 0:01:00]} 5. g3 {[%emt 0:00:30]} Nf6 {[%emt 0:00:30]} 6. Bg2 {[%emt 0:00:00]} dxe4 {[%emt 0:00:30]} 7. dxe4 {[%emt 0:01:00]} Be7 {[%emt 0:01:30]} 8. O-O {[%emt 0:00:00]} O-O {[%emt 0:01:30]} 9. c3 {[%emt 0:01:00]} b6 {[%emt 0:08:30]} 10. Re1 {[%emt 0:08:30]} Bb7 {[%emt 0:02:30]} 11. Qc2 {[%emt 0:04:30]} e5 {[%emt 0:11:30]} 12. Nc4 {[%emt 0:04:30]} Qc7 {[%emt 0:02:30]} 13. Bg5 {[%emt 0:05:30]} Rad8 {[%emt 0:24:30]} 14. Bxf6 {[%emt 0:06:30]} Bxf6 {[%emt 0:00:30]} 15. Ne3 {[%emt 0:00:30]} Ne7 {[%emt 0:01:30]} 16. Ng4 {[%emt 0:06:30]} Qd6 {[%emt 0:14:30]} 17. Red1 {[%emt 0:01:30]} Qe6 {[%emt 0:01:30]} 18. Bh3 {[%emt 0:02:30]} Qc4 {[%emt 0:01:30]} 19. Nfxe5 {[%emt 0:03:30]} Bxe5 {[%emt 0:01:30]} 20. Nxe5 {[%emt 0:01:30]} Qxe4 {[%emt 0:01:30]} 21. Qxe4 {[%emt 0:00:30]} Bxe4 {[%emt 0:00:00]} 22. Rd7 {[%emt 0:02:30]} Rxd7 {[%emt 0:06:15]} 23. Nxd7 {[%emt 0:00:30]} Rd8 {[%emt 0:00:41]} 24. Rd1 {[%emt 0:02:30]} Nc6 {[%emt 0:00:34]} 25. Bg2 {[%emt 0:12:30]} Bxg2 {[%emt 0:00:46]} 26. Kxg2 {[%emt 0:00:30]} Kh8 {[%emt 0:07:05]} 27. Re1 {[%emt 0:01:30]} h6 {[%emt 0:00:32]} 28. Ne5 {[%emt 0:00:30]} Nxe5 {[%emt 0:01:03]} 29. Rxe5 {[%emt 0:00:30]} Kg8 {[%emt 0:04:33]} 30. Re7 {[%emt 0:00:30]} Rd2 {[%emt 0:00:29]} 31. Rxa7 {[%emt 0:01:30]} Rxb2 {[%emt 0:00:02]} 32. Rb7 {[%emt 0:00:30]} Rxa2 {[%emt 0:00:06]} 33. Rxb6 {[%emt 0:00:30]} Ra3 {[%emt 0:00:03]} 34. Rb8+ {[%emt 0:00:30]} Kh7 {[%emt 0:00:25]} 35. Rb7 {[%emt 0:00:30]} f6 {[%emt 0:00:27]} 36. Kf3 {[%emt 0:00:30]} Rxc3+ {[%emt 0:00:30]} 37. Ke2 {[%emt 0:00:00]} Rc2+ {[%emt 0:00:00]} 38. Ke3 {[%emt 0:00:00]} Kg6 {[%emt 0:00:08]} 39. Rc7 {[%emt 0:01:30]} c4 {[%emt 0:00:32]} 40. h3 {[%emt 0:01:30]} c3 {[%emt 0:00:26]} 41. h4 {[%emt 0:03:30]} h5 {[%emt 0:01:16]} 42. Rc4 {[%emt 0:00:30]} Rc1 {[%emt 0:01:10]} 43. Kd3 {[%emt 0:01:30]} Kf5 {[%emt 0:01:05]} 44. Rf4+ {[%emt 0:01:30]} Kg6 {[%emt 0:01:30]} 45. Rc4 {[%emt 0:00:30]} Rf1 {[%emt 0:00:53]} 46. Ke2 {[%emt 0:01:30]} Rc1 {[%emt 0:00:30]} 47. Kd3 {[%emt 0:00:30]} c2 {[%emt 0:01:59]} 48. Rxc2 {[%emt 0:00:30]} Rxc2 {[%emt 0:00:11]} 49. Kxc2 {[%emt 0:00:30]} Kf5 {[%emt 0:00:00]} 50. Kd3 {[%emt 0:01:46]} Kg4 {[%emt 0:00:45]} 51. Ke2 {[%emt 0:03:54]} f5 {[%emt 0:01:13]} 52. Kf1 {[%emt 0:04:20]} Kf3 {[%emt 0:00:38]} 53. Kg1 {[%emt 0:00:58]} f4 {[%emt 0:00:20]} 54. gxf4 {[%emt 0:01:53]} Kxf4 {[%emt 0:00:11]} 55. Kg2 {[%emt 0:00:47]} Kg4 {[%emt 0:00:30]} 56. f3+ {[%emt 0:00:30]} Kxh4 {[%emt 0:00:30]} 57. Kh2 {[%emt 0:00:30]} Kg5 {[%emt 0:00:30]} 58. Kg3 {[%emt 0:00:30]} h4+ {[%emt 0:00:30]} 59. Kh3 {[%emt 0:00:30]} g6 {[%emt 0:00:00]} 60. f4+ {[%emt 0:01:45]} Kxf4 {[%emt 0:00:00]} 61. Kxh4 {[%emt 0:00:30]} g5+ {[%emt 0:00:00]} 62. Kh3 {[%emt 0:00:41]} Kf3 {[%emt 0:00:00]} 63. Kh2 {[%emt 0:00:30]} g4 {[%emt 0:00:00]} 64. Kg1 {[%emt 0:00:50]} Kg3 {[%emt 0:00:00]} 65. Kh1 {[%emt 0:00:00]} Kf2 0-1

[Event "8th Mersin Open 2024"]
[Site "Mersin"]
[Date "2024.11.13"]
[Round "6"]
[White "Ulgez, Selin"]
[Black "Yalcin, Enes Furkan"]
[Result "0-1"]
[ECO "A80"]
[WhiteElo "1569"]
[BlackElo "1585"]
[Annotator "NA RC"]
[PlyCount "72"]
[EventDate "2024.11.10"]
[EventType "swiss"]
[EventCountry "TUR"]
[SourceTitle "playchess.com"]
[Source "ChessBase"]
[SourceQuality "1"]
[TimeControl "5400+30"]

1. d4 {[%emt 0:01:00]} f5 {[%emt 0:02:00]} 2. Nf3 {[%emt 0:00:00]} Nf6 {[%emt 0:00:00]} 3. Bf4 {[%emt 0:00:00]} e6 {[%emt 0:00:00]} 4. e3 {[%emt 0:00:00]} d6 {[%emt 0:00:30]} 5. Be2 {[%emt 0:01:00]} Nc6 {[%emt 0:02:30]} 6. O-O {[%emt 0:01:30]} g6 {[%emt 0:00:00]} 7. c4 {[%emt 0:02:30]} Ne7 {[%emt 0:02:00]} 8. h3 {[%emt 0:03:30]} Bg7 {[%emt 0:01:30]} 9. Nc3 {[%emt 0:01:30]} O-O {[%emt 0:00:30]} 10. Rc1 {[%emt 0:04:30]} c6 {[%emt 0:02:30]} 11. b4 {[%emt 0:02:30]} Ne4 {[%emt 0:01:30]} 12. Bd3 {[%emt 0:12:30]} Nxc3 {[%emt 0:03:30]} 13. Rxc3 {[%emt 0:00:30]} c5 {[%emt 0:00:00]} 14. a3 {[%emt 0:01:30]} Nc6 {[%emt 0:06:00]} 15. Bg5 {[%emt 0:02:30]} Qc7 {[%emt 0:02:30]} 16. b5 {[%emt 0:04:30]} cxd4 {[%emt 0:03:30]} 17. Rc1 {[%emt 0:00:30]} Ne5 {[%emt 0:01:30]} 18. Nxd4 {[%emt 0:00:30]} h6 {[%emt 0:01:30]} 19. Bh4 {[%emt 0:00:30]} Nxd3 {[%emt 0:00:30]} 20. Qxd3 {[%emt 0:00:30]} e5 {[%emt 0:00:30]} 21. Nc2 {[%emt 0:00:30]} g5 {[%emt 0:00:30]} 22. Bg3 {[%emt 0:00:30]} Be6 {[%emt 0:00:30]} 23. Nb4 {[%emt 0:00:30]} f4 {[%emt 0:00:30]} 24. exf4 {[%emt 0:00:30]} exf4 {[%emt 0:00:30]} 25. Bh2 {[%emt 0:00:30]} Rad8 {[%emt 0:11:30]} 26. Nd5 {[%emt 0:05:30]} Qf7 {[%emt 0:01:30]} 27. Rfd1 {[%emt 0:02:30]} Rd7 {[%emt 0:04:30]} 28. Kh1 {[%emt 0:03:30]} Be5 {[%emt 0:05:30]} 29. f3 {[%emt 0:02:30]} Qh5 {[%emt 0:02:30]} 30. Bg1 {[%emt 0:02:30]} Rg7 {[%emt 0:03:30]} 31. Bd4 {[%emt 0:10:30]} Bxh3 {[%emt 0:03:30]} 32. gxh3 {[%emt 0:04:30]} Qxh3+ {[%emt 0:00:30]} 33. Kg1 {[%emt 0:00:30]} g4 {[%emt 0:00:30]} 34. Kf2 {[%emt 0:08:30]} Bxd4+ {[%emt 0:04:30]} 35. Qxd4 {[%emt 0:00:30]} Qh2+ {[%emt 0:04:30]} 36. Kf1 {[%emt 0:00:30]} gxf3 {[%emt 0:01:30]} 0-1

[Event "8th Mersin Open 2024"]
[Site "Mersin"]
[Date "2024.11.13"]
[Round "6"]
[White "Fidan, Naz Mercan"]
[Black "Arslan, Hazar"]
[Result "0-1"]
[ECO "C00"]
[WhiteElo "1552"]
[BlackElo "1597"]
[Annotator "NA RC"]
[PlyCount "82"]
[EventDate "2024.11.10"]
[EventType "swiss"]
[EventCountry "TUR"]
[SourceTitle "playchess.com"]
[Source "ChessBase"]
[SourceQuality "1"]
[TimeControl "5400+30"]

1. e4 {[%emt 0:01:00]} e6 {[%emt 0:01:00]} 2. d3 {[%emt 0:00:30]} d5 {[%emt 0:00:30]} 3. Nd2 {[%emt 0:00:30]} Nf6 {[%emt 0:00:00]} 4. Ngf3 {[%emt 0:00:00]} c5 {[%emt 0:00:00]} 5. g3 {[%emt 0:00:00]} Be7 {[%emt 0:00:00]} 6. Bg2 {[%emt 0:00:00]} Nc6 {[%emt 0:00:00]} 7. O-O {[%emt 0:00:00]} O-O {[%emt 0:00:00]} 8. Re1 {[%emt 0:00:00]} Qc7 {[%emt 0:00:00]} 9. e5 {[%emt 0:03:00]} Nd7 {[%emt 0:00:30]} 10. Qe2 {[%emt 0:00:30]} b5 {[%emt 0:00:30]} 11. Nf1 {[%emt 0:00:30]} a5 {[%emt 0:00:00]} 12. h4 {[%emt 0:00:30]} Ba6 {[%emt 0:02:00]} 13. N1h2 {[%emt 0:03:30]} c4 {[%emt 0:02:30]} 14. d4 {[%emt 0:08:30]} c3 {[%emt 0:01:30]} 15. b3 {[%emt 0:08:30]} b4 {[%emt 0:02:30]} 16. Qd1 {[%emt 0:00:30]} a4 {[%emt 0:01:30]} 17. Be3 {[%emt 0:06:30]} axb3 {[%emt 0:00:30]} 18. axb3 {[%emt 0:00:30]} Bb5 {[%emt 0:00:30]} 19. Ng5 {[%emt 0:05:30]} Rxa1 {[%emt 0:04:30]} 20. Qxa1 {[%emt 0:00:30]} Qa5 {[%emt 0:04:30]} 21. Qd1 {[%emt 0:06:30]} Qa2 {[%emt 0:02:30]} 22. Qg4 {[%emt 0:00:30]} Bxg5 {[%emt 0:00:30]} 23. Bxg5 {[%emt 0:00:30]} Qxc2 {[%emt 0:00:30]} 24. h5 {[%emt 0:00:30]} Ra8 {[%emt 0:06:30]} 25. Bxd5 {[%emt 0:17:30]} exd5 {[%emt 0:03:30]} 26. e6 {[%emt 0:03:30]} Nf8 {[%emt 0:05:30]} 27. exf7+ {[%emt 0:01:30]} Kxf7 {[%emt 0:04:30]} 28. Qf3+ {[%emt 0:04:30]} Kg8 {[%emt 0:00:30]} 29. Ng4 {[%emt 0:00:30]} Qxb3 {[%emt 0:02:30]} 30. h6 {[%emt 0:00:30]} Nxd4 {[%emt 0:02:30]} 31. Qe3 {[%emt 0:07:30]} Re8 {[%emt 0:00:30]} 32. Qxd4 {[%emt 0:03:44]} Rxe1+ {[%emt 0:00:30]} 33. Kh2 {[%emt 0:00:33]} Ne6 {[%emt 0:00:30]} 34. Qa7 {[%emt 0:01:02]} Qd1 {[%emt 0:03:30]} 35. Qa8+ {[%emt 0:01:44]} Nf8 {[%emt 0:00:00]} 36. hxg7 {[%emt 0:04:00]} Rh1+ {[%emt 0:01:00]} 37. Kg2 {[%emt 0:00:05]} Qf1+ {[%emt 0:00:00]} 38. Kf3 {[%emt 0:00:23]} Qe2+ {[%emt 0:00:00]} 39. Kg2 {[%emt 0:02:06]} Qe4+ {[%emt 0:00:00]} 40. f3 {[%emt 0:00:18]} Bf1+ {[%emt 0:00:00]} 41. Kxh1 {[%emt 0:01:16]} Qxf3+ {[%emt 0:00:30]} 0-1

[Event "8th Mersin Open 2024"]
[Site "Mersin"]
[Date "2024.11.13"]
[Round "6"]
[White "Ozturk, Yucel Mert"]
[Black "Kocacik, Dogukan"]
[Result "1-0"]
[ECO "D05"]
[WhiteElo "1545"]
[BlackElo "1586"]
[Annotator "NA RC"]
[PlyCount "57"]
[EventDate "2024.11.10"]
[EventType "swiss"]
[EventCountry "TUR"]
[SourceTitle "playchess.com"]
[Source "ChessBase"]
[SourceQuality "1"]
[TimeControl "5400+30"]

1. d4 {[%emt 0:01:00]} Nf6 {[%emt 0:01:00]} 2. Nf3 {[%emt 0:00:30]} c5 {[%emt 0:00:30]} 3. e3 {[%emt 0:00:30]} b6 {[%emt 0:00:00]} 4. b3 {[%emt 0:00:30]} e6 {[%emt 0:00:00]} 5. Bb2 {[%emt 0:00:30]} Bb7 {[%emt 0:00:30]} 6. Nbd2 {[%emt 0:01:30]} d5 {[%emt 0:00:30]} 7. Bd3 {[%emt 0:00:30]} Nbd7 {[%emt 0:00:30]} 8. O-O {[%emt 0:00:30]} Bd6 {[%emt 0:00:00]} 9. Ne5 {[%emt 0:00:30]} O-O {[%emt 0:02:00]} 10. f4 {[%emt 0:02:30]} Ne8 {[%emt 0:06:30]} 11. Rf3 {[%emt 0:03:30]} f5 {[%emt 0:02:30]} 12. Rh3 {[%emt 0:03:30]} Ndf6 {[%emt 0:03:30]} 13. Ndf3 {[%emt 0:04:30]} h6 {[%emt 0:11:30]} 14. Ng6 {[%emt 0:05:30]} Rf7 {[%emt 0:00:30]} 15. Ng5 {[%emt 0:00:00]} Qd7 {[%emt 0:06:30]} 16. Nxf7 {[%emt 0:01:00]} Qxf7 {[%emt 0:00:30]} 17. Ne5 {[%emt 0:00:00]} Bxe5 {[%emt 0:00:30]} 18. fxe5 {[%emt 0:00:00]} Nh7 {[%emt 0:01:30]} 19. Rf3 {[%emt 0:03:30]} g5 {[%emt 0:03:30]} 20. Rf2 {[%emt 0:00:30]} h5 {[%emt 0:00:30]} 21. c4 {[%emt 0:00:30]} g4 {[%emt 0:00:30]} 22. cxd5 {[%emt 0:00:30]} Bxd5 {[%emt 0:00:30]} 23. e4 {[%emt 0:00:30]} Nc7 {[%emt 0:00:30]} 24. exd5 {[%emt 0:00:30]} Nxd5 {[%emt 0:00:30]} 25. Be4 {[%emt 0:00:30]} Rd8 {[%emt 0:08:30]} 26. dxc5 {[%emt 0:07:30]} Ng5 {[%emt 0:00:30]} 27. Bxd5 {[%emt 0:05:30]} Rxd5 {[%emt 0:00:30]} 28. Qe2 {[%emt 0:01:30]} Ne4 {[%emt 0:01:30]} 29. Qxe4 {[%emt 0:01:30]} 1-0

[Event "8th Mersin Open 2024"]
[Site "Mersin"]
[Date "2024.11.13"]
[Round "6"]
[White "Sahin, Mert"]
[Black "Sadigov, Kamil"]
[Result "1/2-1/2"]
[ECO "B15"]
[WhiteElo "1534"]
[BlackElo "1565"]
[Annotator "NA RC"]
[PlyCount "76"]
[EventDate "2024.11.10"]
[EventType "swiss"]
[EventCountry "TUR"]
[SourceTitle "playchess.com"]
[Source "ChessBase"]
[SourceQuality "1"]
[TimeControl "5400+30"]

1. e4 {[%emt 0:01:00]} c6 {[%emt 0:01:00]} 2. d4 {[%emt 0:00:30]} d5 {[%emt 0:00:30]} 3. Nd2 {[%emt 0:00:00]} dxe4 {[%emt 0:00:30]} 4. Nxe4 {[%emt 0:00:00]} Nf6 {[%emt 0:01:30]} 5. Nxf6+ {[%emt 0:00:00]} exf6 {[%emt 0:00:30]} 6. Bc4 {[%emt 0:00:00]} Bd6 {[%emt 0:00:30]} 7. Qe2+ {[%emt 0:00:30]} Qe7 {[%emt 0:00:30]} 8. Qxe7+ {[%emt 0:00:30]} Bxe7 {[%emt 0:00:30]} 9. Ne2 {[%emt 0:00:00]} O-O {[%emt 0:00:30]} 10. Bf4 {[%emt 0:01:00]} Bf5 {[%emt 0:00:30]} 11. Kd2 {[%emt 0:01:30]} Nd7 {[%emt 0:00:30]} 12. a4 {[%emt 0:00:30]} Nb6 {[%emt 0:00:30]} 13. Bb3 {[%emt 0:00:30]} Rac8 {[%emt 0:01:30]} 14. a5 {[%emt 0:01:30]} Nd5 {[%emt 0:00:00]} 15. a6 {[%emt 0:00:30]} b6 {[%emt 0:02:00]} 16. f3 {[%emt 0:01:30]} Rfd8 {[%emt 0:02:30]} 17. c3 {[%emt 0:02:30]} Nxf4 {[%emt 0:04:30]} 18. Nxf4 {[%emt 0:00:30]} c5 {[%emt 0:00:30]} 19. Nd5 {[%emt 0:13:30]} Bf8 {[%emt 0:01:30]} 20. Ne3 {[%emt 0:03:30]} Bg6 {[%emt 0:00:30]} 21. d5 {[%emt 0:00:30]} b5 {[%emt 0:03:30]} 22. c4 {[%emt 0:01:30]} bxc4 {[%emt 0:01:30]} 23. Bxc4 {[%emt 0:00:30]} Bd6 {[%emt 0:00:00]} 24. b3 {[%emt 0:06:30]} Be5 {[%emt 0:02:00]} 25. Rae1 {[%emt 0:01:30]} Rc7 {[%emt 0:04:30]} 26. g3 {[%emt 0:00:30]} Re7 {[%emt 0:00:30]} 27. Ng4 {[%emt 0:00:30]} Bd6 {[%emt 0:00:30]} 28. Rxe7 {[%emt 0:00:30]} Bxe7 {[%emt 0:00:30]} 29. Re1 {[%emt 0:00:30]} Bd6 {[%emt 0:00:30]} 30. Nf2 {[%emt 0:00:30]} Kf8 {[%emt 0:00:30]} 31. f4 {[%emt 0:00:30]} Bc7 {[%emt 0:00:30]} 32. Re3 {[%emt 0:00:30]} Bf5 {[%emt 0:09:30]} 33. Nd1 {[%emt 0:05:30]} Ba5+ {[%emt 0:02:30]} 34. Kc1 {[%emt 0:01:30]} g6 {[%emt 0:01:30]} 35. Nb2 {[%emt 0:02:30]} Rd6 {[%emt 0:00:30]} 36. Na4 {[%emt 0:00:30]} Bb4 {[%emt 0:00:30]} 37. Nc3 {[%emt 0:00:30]} Bxc3 {[%emt 0:00:30]} 38. Rxc3 {[%emt 0:00:30]} Ke8 {[%emt 0:06:30]} 1/2-1/2

[Event "8th Mersin Open 2024"]
[Site "Mersin"]
[Date "2024.11.13"]
[Round "6"]
[White "Huseynli, Nurey"]
[Black "Tawel, Ihab."]
[Result "0-1"]
[ECO "E94"]
[WhiteElo "1505"]
[BlackElo "1584"]
[Annotator "NA RC"]
[PlyCount "94"]
[EventDate "2024.11.10"]
[EventType "swiss"]
[EventCountry "TUR"]
[SourceTitle "playchess.com"]
[Source "ChessBase"]
[SourceQuality "1"]
[TimeControl "5400+30"]

1. d4 {[%emt 0:01:00]} d6 {[%emt 0:04:00]} 2. c4 {[%emt 0:00:30]} Nf6 {[%emt 0:00:30]} 3. Nc3 {[%emt 0:00:30]} g6 {[%emt 0:01:30]} 4. e4 {[%emt 0:00:30]} Nbd7 {[%emt 0:00:30]} 5. Be2 {[%emt 0:00:30]} Bg7 {[%emt 0:00:30]} 6. Nf3 {[%emt 0:02:30]} O-O {[%emt 0:03:30]} 7. O-O {[%emt 0:03:30]} e5 {[%emt 0:00:30]} 8. d5 {[%emt 0:01:30]} Nc5 {[%emt 0:00:30]} 9. Qc2 {[%emt 0:01:30]} a6 {[%emt 0:07:30]} 10. Bg5 {[%emt 0:04:30]} Bg4 {[%emt 0:03:30]} 11. h3 {[%emt 0:02:30]} Bxf3 {[%emt 0:00:00]} 12. Bxf3 {[%emt 0:00:00]} Rb8 {[%emt 0:06:00]} 13. b4 {[%emt 0:03:00]} Ncd7 {[%emt 0:00:00]} 14. Be2 {[%emt 0:07:30]} a5 {[%emt 0:06:00]} 15. a3 {[%emt 0:02:30]} h6 {[%emt 0:04:30]} 16. Be3 {[%emt 0:00:30]} axb4 {[%emt 0:00:30]} 17. axb4 {[%emt 0:00:30]} b6 {[%emt 0:00:30]} 18. Ra7 {[%emt 0:00:30]} Ne8 {[%emt 0:13:30]} 19. Bg4 {[%emt 0:08:30]} h5 {[%emt 0:00:30]} 20. Bxd7 {[%emt 0:02:30]} Qxd7 {[%emt 0:00:30]} 21. c5 {[%emt 0:00:30]} bxc5 {[%emt 0:02:30]} 22. bxc5 {[%emt 0:01:30]} Qc8 {[%emt 0:02:30]} 23. c6 {[%emt 0:06:30]} f5 {[%emt 0:00:00]} 24. exf5 {[%emt 0:02:30]} gxf5 {[%emt 0:00:00]} 25. f3 {[%emt 0:01:30]} f4 {[%emt 0:06:30]} 26. Bf2 {[%emt 0:00:30]} Qf5 {[%emt 0:02:30]} 27. Qe2 {[%emt 0:01:30]} e4 {[%emt 0:00:30]} 28. fxe4 {[%emt 0:01:30]} Qg6 {[%emt 0:01:30]} 29. Qf3 {[%emt 0:03:30]} Rb3 {[%emt 0:04:30]} 30. Rc1 {[%emt 0:01:30]} Qf6 {[%emt 0:04:30]} 31. Be1 {[%emt 0:10:30]} Qd4+ {[%emt 0:00:30]} 32. Bf2 {[%emt 0:02:30]} Qd2 {[%emt 0:01:30]} 33. Qd1 {[%emt 0:00:30]} Bxc3 {[%emt 0:00:30]} 34. Qxd2 {[%emt 0:01:30]} Bxd2 {[%emt 0:01:30]} 35. Rc2 {[%emt 0:00:30]} Be3 {[%emt 0:00:30]} 36. Rb7 {[%emt 0:00:30]} Ra3 {[%emt 0:01:30]} 37. Rcb2 {[%emt 0:00:30]} Ra1+ {[%emt 0:00:30]} 38. Rb1 {[%emt 0:01:30]} Rxb1+ {[%emt 0:01:30]} 39. Rxb1 {[%emt 0:00:30]} Nf6 {[%emt 0:00:00]} 40. Bxe3 {[%emt 0:01:30]} fxe3 {[%emt 0:00:00]} 41. Re1 {[%emt 0:00:30]} Re8 {[%emt 0:00:30]} 42. Rxe3 {[%emt 0:00:30]} Rxe4 {[%emt 0:00:00]} 43. Kf2 {[%emt 0:02:30]} Rxe3 {[%emt 0:00:00]} 44. Kxe3 {[%emt 0:00:30]} Nxd5+ {[%emt 0:00:30]} 45. Kd4 {[%emt 0:00:30]} Ne7 {[%emt 0:00:30]} 46. g4 {[%emt 0:00:00]} hxg4 {[%emt 0:00:30]} 47. hxg4 {[%emt 0:00:00]} Nxc6+ {[%emt 0:00:00]} 0-1

[Event "8th Mersin Open 2024"]
[Site "Mersin"]
[Date "2024.11.13"]
[Round "6"]
[White "Yagublu, Azad"]
[Black "Doygun, Lena"]
[Result "0-1"]
[ECO "A25"]
[WhiteElo "1458"]
[BlackElo "1593"]
[Annotator "NA RC"]
[PlyCount "48"]
[EventDate "2024.11.10"]
[EventType "swiss"]
[EventCountry "TUR"]
[SourceTitle "playchess.com"]
[Source "ChessBase"]
[SourceQuality "1"]
[TimeControl "5400+30"]

1. c4 {[%emt 0:01:00]} e5 {[%emt 0:01:00]} 2. Nc3 {[%emt 0:00:30]} Nf6 {[%emt 0:00:30]} 3. g3 {[%emt 0:00:00]} Bc5 {[%emt 0:00:30]} 4. Bg2 {[%emt 0:00:00]} Nc6 {[%emt 0:00:30]} 5. e3 {[%emt 0:00:30]} O-O {[%emt 0:00:30]} 6. d4 {[%emt 0:00:30]} exd4 {[%emt 0:00:30]} 7. exd4 {[%emt 0:00:30]} Re8+ {[%emt 0:00:30]} 8. Nge2 {[%emt 0:00:30]} Nxd4 {[%emt 0:02:30]} 9. O-O {[%emt 0:00:30]} Nxe2+ {[%emt 0:00:30]} 10. Nxe2 {[%emt 0:00:00]} c6 {[%emt 0:00:30]} 11. Nc3 {[%emt 0:01:00]} Bb4 {[%emt 0:08:30]} 12. Bg5 {[%emt 0:00:30]} Bxc3 {[%emt 0:03:30]} 13. bxc3 {[%emt 0:00:30]} h6 {[%emt 0:00:00]} 14. Bxf6 {[%emt 0:00:30]} Qxf6 {[%emt 0:00:00]} 15. Qb3 {[%emt 0:00:30]} b6 {[%emt 0:04:30]} 16. Rad1 {[%emt 0:00:30]} Qe7 {[%emt 0:03:30]} 17. a4 {[%emt 0:03:30]} Ba6 {[%emt 0:01:30]} 18. Rfe1 {[%emt 0:06:30]} Qxe1+ {[%emt 0:00:30]} 19. Rxe1 {[%emt 0:00:30]} Rxe1+ {[%emt 0:00:30]} 20. Bf1 {[%emt 0:00:00]} d5 {[%emt 0:00:30]} 21. cxd5 {[%emt 0:01:00]} Bxf1 {[%emt 0:00:30]} 22. h4 {[%emt 0:03:30]} Bc4+ {[%emt 0:00:30]} 23. Kh2 {[%emt 0:00:00]} Bxb3 {[%emt 0:00:30]} 24. dxc6 {[%emt 0:00:00]} Rc8 {[%emt 0:00:00]} 0-1

[Event "8th Mersin Open 2024"]
[Site "Mersin"]
[Date "2024.11.14"]
[Round "7"]
[White "Bernadskiy, Vitaliy"]
[Black "Yermolinsky, Alex"]
[Result "1-0"]
[ECO "B30"]
[WhiteElo "2543"]
[BlackElo "2417"]
[Annotator "RC"]
[PlyCount "66"]
[EventDate "2024.11.10"]
[EventType "swiss"]
[EventCountry "TUR"]
[SourceTitle "playchess.com"]
[Source "ChessBase"]
[SourceQuality "1"]
[TimeControl "5400+30"]

1. e4 c5 2. Nc3 Nc6 3. Bb5 Nd4 4. Nf3 e6 5. O-O a6 6. Bd3 Nc6 7. a3 Nf6 8. Re1 d6 9. Bf1 Be7 10. d3 O-O 11. Ne2 d5 12. e5 Ng4 13. d4 f6 14. h3 Nxf2 15. Kxf2 fxe5 16. dxe5 Nxe5 17. Neg1 Qd6 18. g3 Nxf3 19. Nxf3 e5 20. Kg1 e4 21. Bf4 Rxf4 22. gxf4 exf3 23. Qxf3 Bd7 24. Bg2 Bc6 25. f5 Rf8 26. Rad1 Bf6 27. Re6 Qc7 28. Kh1 Kh8 29. b3 Qf7 30. Qg3 Bd7 31. Re2 d4 32. Qd6 Bxf5 33. Bd5 b5 1-0